fUSD/lending_fUSD_20241108
["ID","MTS","AMOUNT","RATE_DAILY","PERIOD"]
[341613091,1731033042859,-500.0,0.00027397,2]
[341613092,1731033042867,-500.0,0.00027397,2]
[341613093,1731033042877,-500.0,0.00027397,2]
[341613094,1731033042886,-500.0,0.00027397,2]
[341613095,1731033042895,-571.47,0.00027397,2]
[341613096,1731033042905,-500.0,0.00027397,2]
[341613097,1731033042914,-505.25834609,0.00027397,2]
[341613098,1731033042924,-500.0,0.00027397,2]
[341613099,1731033042934,-11744.38,0.00027397,2]
[341613100,1731033042944,-601.25902677,0.00027397,2]
[341613101,1731033042953,-514.66944667,0.00027397,2]
[341613102,1731033042964,-500.0,0.00027397,2]
[341613103,1731033042973,-500.0,0.00027397,2]
[341613104,1731033042983,-510.22272447,0.00027397,2]
[341613105,1731033042992,-1409.03,0.00027397,2]
[341613106,1731033043002,-151.0,0.00027397,7]
[341613107,1731033043012,-500.0,0.00027397,2]
[341613108,1731033043022,-151.0,0.00027397,7]
[341613109,1731033043032,-151.0,0.00027397,7]
[341613110,1731033043042,-500.0,0.00027397,2]
[341613111,1731033043051,-262.809143,0.00027397,7]
[341613112,1731033043061,-500.0,0.00027397,2]
[341613113,1731033043070,-813.54,0.00027397,2]
[341613114,1731033043080,-509.81,0.00027397,2]
[341613115,1731033043090,-500.0,0.00027397,2]
[341613116,1731033043099,-542.94859855,0.00027397,2]
[341613117,1731033043108,-1529.76,0.00027397,2]
[341613118,1731033043116,-503.13921031,0.00027397,2]
[341613119,1731033043125,-500.0,0.00027397,2]
[341613120,1731033043135,-500.0,0.00027397,2]
[341613121,1731033043144,-500.0,0.00027397,2]
[341613122,1731033043153,-507.79986781,0.00027397,2]
[341613123,1731033043164,-896.08,0.00027397,2]
[341613124,1731033043173,-500.0,0.00027397,2]
[341613125,1731033043189,-705.28,0.00027397,2]
[341613126,1731033043199,-536.19,0.00027397,2]
[341613127,1731033043208,-2211.18,0.00027397,2]
[341613128,1731033043217,-500.0,0.00027397,2]
[341613129,1731033043226,-504.85140756,0.00027397,2]
[341613130,1731033043236,-632.58,0.00027397,2]
[341613131,1731033043244,-2317.84,0.00027397,2]
[341613132,1731033043255,-500.0,0.00027397,2]
[341613133,1731033043264,-503.0182817,0.00027397,2]
[341613134,1731033043273,-503.29508412,0.00027397,2]
[341613135,1731033043284,-500.0,0.00027397,2]
[341613136,1731033043293,-500.0,0.00027397,2]
[341613137,1731033043302,-500.0,0.00027397,2]
[341613138,1731033043311,-2017.22,0.00027397,2]
[341613139,1731033043321,-500.0,0.00027397,2]
[341613140,1731033043330,-507.47,0.00027397,2]
[341613141,1731033043339,-500.0,0.00027397,2]
[341613142,1731033043348,-500.0,0.00027397,2]
[341613143,1731033043357,-666.65,0.00027397,2]
[341613144,1731033043367,-647.86,0.00027397,2]
[341613145,1731033043375,-1848.89,0.00027397,2]
[341613146,1731033043384,-1076.89,0.00027397,2]
[341613147,1731033043393,-561.64353826,0.00027397,2]
[341613148,1731033043404,-500.0,0.00027397,2]
[341613149,1731033043414,-500.0,0.00027397,2]
[341613150,1731033043425,-500.0,0.00027397,2]
[341613151,1731033043437,-1458.27,0.00027397,2]
[341613152,1731033043446,-998.61,0.00027397,2]
[341613153,1731033043457,-500.0,0.00027397,2]
[341613154,1731033043468,-500.0,0.00027397,2]
[341613155,1731033043478,-553.63370985,0.00027397,2]
[341613156,1731033043490,-500.0,0.00027397,2]
[341613157,1731033043500,-503.1269379,0.00027397,2]
[341613158,1731033043509,-527.03884422,0.00027397,2]
[341613159,1731033043518,-1520.23,0.00027397,2]
[341613160,1731033043527,-500.0,0.00027397,2]
[341613161,1731033043536,-500.0,0.00027397,2]
[341613162,1731033043545,-611.64,0.00027397,2]
[341613163,1731033043554,-531.57,0.00027397,2]
[341613164,1731033043564,-500.0,0.00027397,2]
[341613165,1731033043574,-500.0,0.00027397,2]
[341613166,1731033043583,-500.0,0.00027397,2]
[341613167,1731033043593,-500.0,0.00027397,2]
[341613168,1731033043602,-500.0,0.00027397,2]
[341613169,1731033043611,-587.97,0.00027397,2]
[341613170,1731033043620,-500.0,0.00027397,2]
[341613171,1731033043630,-500.0,0.00027397,2]
[341613172,1731033043639,-674.21,0.00027397,2]
[341613173,1731033043649,-660.42,0.00027397,2]
[341613174,1731033043658,-641.85,0.00027397,2]
[341613175,1731033043668,-500.0,0.00027397,2]
[341613176,1731033043677,-1502.09,0.00027397,2]
[341613177,1731033043686,-500.0,0.00027397,2]
[341613178,1731033043695,-640.95,0.00027397,2]
[341613179,1731033043704,-500.0,0.00027397,2]
[341613180,1731033043713,-949.7,0.00027397,2]
[341613181,1731033043722,-507.13729015,0.00027397,2]
[341613182,1731033043732,-506.30117311,0.00027397,2]
[341613183,1731033043741,-500.0,0.00027397,2]
[341613184,1731033043752,-500.0,0.00027397,2]
[341613185,1731033043761,-1369.44,0.00027397,2]
[341613187,1731033043770,-500.0,0.00027397,2]
[341613188,1731033043779,-974.62,0.00027397,2]
[341613190,1731033043789,-304.0622304,0.00027397,2]
[341613192,1731033043798,-500.0,0.00027397,2]
[341613193,1731033043807,-500.0,0.00027397,2]
[341613194,1731033043816,-501.31466929,0.00027397,2]
[341613195,1731033043825,-500.0,0.00027397,2]
[341613196,1731033043835,-500.0,0.00027397,2]
[341613197,1731033043844,-1501.14,0.00027397,2]
[341613198,1731033043854,-177.415878,0.00027397,2]
[341613199,1731033043863,-626.96,0.00027397,2]
[341613200,1731033043872,-555.16,0.00027397,2]
[341613201,1731033043882,-2538.63,0.00027397,2]
[341613202,1731033043891,-500.0,0.00027397,2]
[341613203,1731033043901,-657.05,0.00027397,2]
[341613204,1731033043910,-1486.4,0.00027397,2]
[341613205,1731033043919,-846.14,0.00027397,2]
[341613206,1731033043929,-540.5,0.00027397,2]
[341613208,1731033043939,-504.34792424,0.00027397,2]
[341613209,1731033043951,-500.0,0.00027397,2]
[341613211,1731033043960,-761.11,0.00027397,2]
[341613213,1731033043969,-500.0,0.00027397,2]
[341613215,1731033043979,-562.64,0.00027397,2]
[341613217,1731033043988,-500.0,0.00027397,2]
[341613219,1731033043998,-243.550831,0.00027397,7]
[341613220,1731033044011,-509.08,0.00027397,2]
[341613221,1731033044020,-500.0,0.00027397,2]
[341613222,1731033044029,-1334.58,0.00027397,2]
[341613223,1731033044038,-936.74,0.00027397,2]
[341613224,1731033044048,-243.550831,0.00027397,7]
[341613225,1731033044057,-243.550831,0.00027397,7]
[341613226,1731033044066,-243.550831,0.00027397,7]
[341613227,1731033044075,-243.550831,0.00027397,7]
[341613228,1731033044085,-243.550831,0.00027397,7]
[341613229,1731033044094,-243.550831,0.00027397,7]
[341613230,1731033044103,-503.33388263,0.00027397,2]
[341613231,1731033044112,-243.550831,0.00027397,7]
[341613232,1731033044121,-411.99924202,0.00027397,2]
[341613233,1731033044131,-500.0,0.00027397,2]
[341613234,1731033044141,-243.550831,0.00027397,7]
[341613235,1731033044150,-243.550831,0.00027397,7]
[341613236,1731033044160,-243.550831,0.00027397,7]
[341613237,1731033044170,-500.0,0.00027397,2]
[341613238,1731033044180,-243.550831,0.00027397,7]
[341613239,1731033044189,-243.550831,0.00027397,7]
[341613240,1731033044199,-500.0,0.00027397,2]
[341613241,1731033044208,-243.550831,0.00027397,7]
[341613242,1731033044217,-243.550831,0.00027397,7]
[341613243,1731033044226,-503.83559878,0.00027397,2]
[341613244,1731033044235,-243.550825,0.00027397,7]
[341613245,1731033044245,-508.00424405,0.00027397,2]
[341613246,1731033044259,-509.03274502,0.00027397,2]
[341613247,1731033044268,-562.83,0.00027397,2]
[341613248,1731033044277,-501.82375631,0.00027397,2]
[341613249,1731033044287,-850.06,0.00027397,2]
[341613250,1731033044296,-500.0,0.00027397,2]
[341613251,1731033044305,-4452.95,0.00027397,2]
[341613252,1731033044315,-500.0,0.00027397,2]
[341613253,1731033044435,-500.0,0.00027397,2]
[341613254,1731033044446,-560.28613866,0.00027397,2]
[341613255,1731033044457,-500.0,0.00027397,2]
[341613256,1731033044467,-501.46393918,0.00027397,2]
[341613257,1731033044477,-500.0,0.00027397,2]
[341613258,1731033044487,-303.16475493,0.00027397,2]
[341613259,1731033044497,-500.0,0.00027397,2]
[341613260,1731033044511,-500.0,0.00027397,2]
[341613261,1731033044520,-511.36871096,0.00027397,2]
[341613262,1731033044530,-1412.43,0.00027397,2]
[341613263,1731033044540,-500.0,0.00027397,2]
[341613264,1731033044550,-502.38101477,0.00027397,2]
[341613265,1731033044560,-500.0,0.00027397,2]
[341613266,1731033044570,-500.0,0.00027397,2]
[341613267,1731033044581,-505.91826002,0.00027397,2]
[341613268,1731033044590,-713.71,0.00027397,2]
[341613269,1731033044600,-500.0,0.00027397,2]
[341613270,1731033044610,-723.53,0.00027397,2]
[341613271,1731033044620,-971.24,0.00027397,2]
[341613272,1731033044630,-631.61,0.00027397,2]
[341613273,1731033044640,-500.0,0.00027397,2]
[341613274,1731033044649,-461.10517241,0.00027397,2]
[341613275,1731033045087,-38.89482759,0.00027397,2]
[341613276,1731033045097,-500.0,0.00027397,2]
[341613277,1731033045106,-556.60213304,0.00027397,2]
[341613278,1731033045117,-500.0,0.00027397,2]
[341613279,1731033045127,-2637.09,0.00027397,2]
[341613280,1731033045136,-664.73,0.00027397,2]
[341613281,1731033045146,-500.0,0.00027397,2]
[341613282,1731033045156,-502.85420052,0.00027397,2]
[341613283,1731033045170,-1089.15,0.00027397,2]
[341613284,1731033045182,-1000.0,0.00027397,2]
[341613285,1731033045193,-4100.24,0.00027397,2]
[341613286,1731033045204,-639.7,0.00027397,2]
[341613287,1731033045216,-884.16,0.00027397,2]
[341613288,1731033045228,-505.31087694,0.00027397,2]
[341613289,1731033045241,-500.0,0.00027397,2]
[341613290,1731033045253,-500.0,0.00027397,2]
[341613291,1731033045263,-500.0,0.00027397,2]
[341613292,1731033045272,-595.33483049,0.00027397,2]
[341613293,1731033045283,-505.17,0.00027397,2]
[341613294,1731033045292,-505.09429569,0.00027397,2]
[341613295,1731033045302,-543.35343393,0.00027397,2]
[341613296,1731033045312,-502.58280734,0.00027397,2]
[341613297,1731033045322,-1484.59,0.00027397,2]
[341613298,1731033045332,-500.0,0.00027397,2]
[341613299,1731033045343,-500.0,0.00027397,2]
[341613300,1731033045352,-200.38965,0.00027397,7]
[341613301,1731033045363,-856.716132,0.00027397,7]
[341613302,1731033045373,-501.27554743,0.00027397,2]
[341613303,1731033045383,-200.38965,0.00027397,7]
[341613304,1731033045393,-718.7,0.00027397,2]
[341613305,1731033045402,-856.716132,0.00027397,7]
[341613306,1731033045412,-200.38965,0.00027397,7]
[341613307,1731033045422,-587.15067065,0.00027397,2]
[341613308,1731033045432,-524.83796226,0.00027397,2]
[341613309,1731033045443,-200.38965,0.00027397,7]
[341613310,1731033045453,-856.716132,0.00027397,7]
[341613311,1731033045464,-856.716132,0.00027397,7]
[341613312,1731033045474,-200.38965,0.00027397,7]
[341613313,1731033045484,-856.716132,0.00027397,7]
[341613314,1731033045495,-200.38965,0.00027397,7]
[341613315,1731033045507,-500.0,0.00027397,2]
[341613316,1731033045518,-856.716132,0.00027397,7]
[341613317,1731033045528,-402.06170936,0.00027397,2]
[341613318,1731033045538,-856.716132,0.00027397,7]
[341613319,1731033045548,-500.0,0.00027397,2]
[341613320,1731033045560,-500.0,0.00027397,2]
[341613321,1731033045570,-856.716132,0.00027397,7]
[341613322,1731033045580,-642.44,0.00027397,2]
[341613323,1731033045590,-856.716132,0.00027397,7]
[341613324,1731033045600,-856.716132,0.00027397,7]
[341613325,1731033045610,-856.716132,0.00027397,7]
[341613326,1731033045620,-856.716132,0.00027397,7]
[341613327,1731033045630,-200.38965,0.00027397,7]
[341613328,1731033045640,-500.0,0.00027397,2]
[341613329,1731033045651,-856.716132,0.00027397,7]
[341613330,1731033045660,-200.38965,0.00027397,7]
[341613331,1731033045670,-200.38965,0.00027397,7]
[341613332,1731033045680,-200.38965,0.00027397,7]
[341613333,1731033045690,-504.77671631,0.00027397,2]
[341613334,1731033045700,-200.38965,0.00027397,7]
[341613335,1731033045711,-200.38965,0.00027397,7]
[341613336,1731033045721,-856.716132,0.00027397,7]
[341613337,1731033045731,-200.38965,0.00027397,7]
[341613338,1731033045741,-856.716132,0.00027397,7]
[341613339,1731033045753,-522.06,0.00027397,2]
[341613340,1731033045763,-856.716122,0.00027397,7]
[341613341,1731033045774,-200.38965,0.00027397,7]
[341613342,1731033045784,-200.38965,0.00027397,7]
[341613343,1731033045795,-635.53,0.00027397,2]
[341613344,1731033045804,-200.389654,0.00027397,7]
[341613345,1731033045814,-3462.79,0.00027397,2]
[341613346,1731033045824,-507.96679691,0.00027397,2]
[341613347,1731033045834,-538.80981821,0.00027397,2]
[341613348,1731033045844,-500.0,0.00027397,2]
[341613349,1731033045857,-500.0,0.00027397,2]
[341613350,1731033045867,-503.32922224,0.00027397,2]
[341613351,1731033045877,-1082.14,0.00027397,2]
[341613352,1731033045887,-567.1,0.00027397,2]
[341613353,1731033045897,-500.0,0.00027397,2]
[341613354,1731033045907,-513.69953718,0.00027397,2]
[341613355,1731033045917,-763.15,0.00027397,2]
[341613356,1731033045928,-502.21233381,0.00027397,2]
[341613357,1731033045938,-500.0,0.00027397,2]
[341613358,1731033045948,-500.0,0.00027397,2]
[341613359,1731033045958,-503.42463554,0.00027397,2]
[341613360,1731033045968,-505.44416419,0.00027397,2]
[341613361,1731033045978,-1440.46,0.00027397,2]
[341613362,1731033045987,-561.78,0.00027397,2]
[341613365,1731033045998,-500.0,0.00027397,2]
[341613366,1731033046011,-500.0,0.00027397,2]
[341613367,1731033046021,-500.0,0.00027397,2]
[341613368,1731033046031,-723.02,0.00027397,2]
[341613369,1731033046042,-500.0,0.00027397,2]
[341613370,1731033046052,-684.52,0.00027397,2]
[341613371,1731033046062,-505.88227343,0.00027397,2]
[341613372,1731033046072,-604.98,0.00027397,2]
[341613373,1731033046083,-1717.61,0.00027397,2]
[341613374,1731033046093,-1078.87,0.00027397,2]
[341613375,1731033046103,-390.0,0.00027397,2]
[341613376,1731033046113,-390.0,0.00027397,2]
[341613377,1731033046123,-390.0,0.00027397,2]
[341613378,1731033046133,-390.0,0.00027397,2]
[341613379,1731033046144,-390.0,0.00027397,2]
[341613380,1731033046154,-390.0,0.00027397,2]
[341613381,1731033046165,-390.0,0.00027397,2]
[341613382,1731033046175,-390.0,0.00027397,2]
[341613383,1731033046186,-390.0,0.00027397,2]
[341613384,1731033046196,-390.0,0.00027397,2]
[341613385,1731033046207,-390.0,0.00027397,2]
[341613386,1731033046217,-390.0,0.00027397,2]
[341613387,1731033046227,-390.0,0.00027397,2]
[341613388,1731033046237,-385.74093072,0.00027397,2]
[341613389,1731033046251,-4.25906928,0.00027397,2]
[341613390,1731033046263,-390.0,0.00027397,2]
[341613391,1731033046273,-390.0,0.00027397,2]
[341613392,1731033046283,-390.0,0.00027397,2]
[341613393,1731033046294,-390.0,0.00027397,2]
[341613394,1731033046304,-390.0,0.00027397,2]
[341613395,1731033046314,-390.0,0.00027397,2]
[341613396,1731033046323,-390.0,0.00027397,2]
[341613397,1731033046333,-390.0,0.00027397,2]
[341613398,1731033046343,-390.0,0.00027397,2]
[341613399,1731033046353,-390.0,0.00027397,2]
[341613400,1731033046363,-390.0,0.00027397,2]
[341613401,1731033046373,-390.0,0.00027397,2]
[341613402,1731033046383,-390.0,0.00027397,2]
[341613403,1731033046392,-390.0,0.00027397,2]
[341613404,1731033046402,-390.0,0.00027397,2]
[341613405,1731033046412,-390.0,0.00027397,2]
[341613406,1731033046423,-390.0,0.00027397,2]
[341613407,1731033046432,-390.0,0.00027397,2]
[341613408,1731033046443,-390.0,0.00027397,2]
[341613409,1731033046452,-390.0,0.00027397,2]
[341613410,1731033046462,-454.0,0.00027397,2]
[341613411,1731033046472,-454.0,0.00027397,2]
[341613412,1731033046482,-454.0,0.00027397,2]
[341613413,1731033046492,-454.0,0.00027397,2]
[341613414,1731033046502,-454.0,0.00027397,2]
[341613415,1731033046514,-454.0,0.00027397,2]
[341613416,1731033046524,-454.0,0.00027397,2]
[341613417,1731033046533,-454.0,0.00027397,2]
[341613418,1731033046543,-454.0,0.00027397,2]
[341613419,1731033046552,-454.0,0.00027397,2]
[341613420,1731033046562,-454.0,0.00027397,2]
[341613421,1731033046572,-454.0,0.00027397,2]
[341613422,1731033046582,-454.0,0.00027397,2]
[341613423,1731033046592,-454.0,0.00027397,2]
[341613424,1731033046924,-454.0,0.00027397,2]
[341613425,1731033046935,-454.0,0.00027397,2]
[341613426,1731033046945,-454.0,0.00027397,2]
[341613427,1731033046954,-390.0,0.00027397,2]
[341613428,1731033046963,-390.0,0.00027397,2]
[341613429,1731033046973,-390.0,0.00027397,2]
[341613430,1731033046983,-390.0,0.00027397,2]
[341613431,1731033046994,-390.0,0.00027397,2]
[341613432,1731033047009,-390.0,0.00027397,2]
[341613433,1731033047019,-390.0,0.00027397,2]
[341613434,1731033047028,-390.0,0.00027397,2]
[341613435,1731033047038,-390.0,0.00027397,2]
[341613436,1731033047047,-390.0,0.00027397,2]
[341613437,1731033047057,-390.0,0.00027397,2]
[341613438,1731033047066,-390.0,0.00027397,2]
[341613439,1731033047075,-390.0,0.00027397,2]
[341613440,1731033047086,-390.0,0.00027397,2]
[341613441,1731033047095,-390.0,0.00027397,2]
[341613442,1731033047105,-390.0,0.00027397,2]
[341613443,1731033047114,-390.0,0.00027397,2]
[341613444,1731033047123,-454.0,0.00027397,2]
[341613445,1731033047133,-454.0,0.00027397,2]
[341613446,1731033047142,-454.0,0.00027397,2]
[341613447,1731033047152,-454.0,0.00027397,2]
[341613448,1731033047162,-454.0,0.00027397,2]
[341613449,1731033047172,-454.0,0.00027397,2]
[341613450,1731033047181,-454.0,0.00027397,2]
[341613451,1731033047191,-454.0,0.00027397,2]
[341613452,1731033047200,-454.0,0.00027397,2]
[341613453,1731033047209,-454.0,0.00027397,2]
[341613454,1731033047218,-454.0,0.00027397,2]
[341613455,1731033047228,-454.0,0.00027397,2]
[341613456,1731033047238,-454.0,0.00027397,2]
[341613457,1731033047247,-390.0,0.00027397,2]
[341613458,1731033047257,-390.0,0.00027397,2]
[341613459,1731033047267,-390.0,0.00027397,2]
[341613460,1731033047276,-390.0,0.00027397,2]
[341613461,1731033047285,-390.0,0.00027397,2]
[341613462,1731033047294,-390.0,0.00027397,2]
[341613463,1731033047303,-390.0,0.00027397,2]
[341613464,1731033047312,-390.0,0.00027397,2]
[341613465,1731033047321,-390.0,0.00027397,2]
[341613466,1731033047331,-390.0,0.00027397,2]
[341613467,1731033047341,-390.0,0.00027397,2]
[341613468,1731033047350,-390.0,0.00027397,2]
[341613469,1731033047360,-390.0,0.00027397,2]
[341613470,1731033047369,-390.0,0.00027397,2]
[341613471,1731033047379,-390.0,0.00027397,2]
[341613472,1731033047388,-390.0,0.00027397,2]
[341613473,1731033047397,-390.0,0.00027397,2]
[341613474,1731033047406,-454.0,0.00027397,2]
[341613475,1731033047416,-454.0,0.00027397,2]
[341613476,1731033047425,-454.0,0.00027397,2]
[341613477,1731033047434,-454.0,0.00027397,2]
[341613478,1731033047444,-454.0,0.00027397,2]
[341613479,1731033047453,-454.0,0.00027397,2]
[341613480,1731033047462,-454.0,0.00027397,2]
[341613481,1731033047472,-454.0,0.00027397,2]
[341613482,1731033047481,-454.0,0.00027397,2]
[341613483,1731033047491,-454.0,0.00027397,2]
[341613484,1731033047500,-313.57845193,0.00027397,2]
[341613485,1731033048959,-613.5926664,0.00025354,2]
[341613486,1731033048969,-500.0,0.00027199,2]
[341613487,1731033048978,-150.84291353,0.00027264,2]
[341613488,1731033048990,-876.46006474,0.00027264,2]
[341613489,1731033049003,-800.0,0.00027264,2]
[341613490,1731033049047,-2842.54261184,0.00027264,2]
[341613491,1731033049056,-444.23402578,0.00027373,2]
[341613492,1731033049066,-1919.93,0.00027397,2]
[341613493,1731033049076,-500.0,0.00027397,2]
[341613494,1731033049087,-300.000001,0.00027397,2]
[341613495,1731033049096,-500.0,0.00027397,2]
[341613496,1731033049106,-500.0,0.00027397,2]
[341613497,1731033049116,-140.42154807,0.00027397,2]
[341613498,1731033049126,-454.0,0.00027397,2]
[341613499,1731033049135,-454.0,0.00027397,2]
[341613500,1731033049144,-454.0,0.00027397,2]
[341613501,1731033049153,-454.0,0.00027397,2]
[341613502,1731033049162,-390.0,0.00027397,2]
[341613503,1731033049172,-390.0,0.00027397,2]
[341613504,1731033049181,-390.0,0.00027397,2]
[341613505,1731033049191,-390.0,0.00027397,2]
[341613506,1731033049200,-390.0,0.00027397,2]
[341613507,1731033049209,-390.0,0.00027397,2]
[341613508,1731033049218,-390.0,0.00027397,2]
[341613509,1731033049227,-390.0,0.00027397,2]
[341613510,1731033049236,-390.0,0.00027397,2]
[341613511,1731033049245,-390.0,0.00027397,2]
[341613512,1731033049254,-390.0,0.00027397,2]
[341613513,1731033049266,-390.0,0.00027397,2]
[341613514,1731033049275,-390.0,0.00027397,2]
[341613515,1731033049284,-390.0,0.00027397,2]
[341613516,1731033049293,-390.0,0.00027397,2]
[341613517,1731033049303,-454.0,0.00027397,2]
[341613518,1731033049312,-454.0,0.00027397,2]
[341613519,1731033049321,-454.0,0.00027397,2]
[341613520,1731033049330,-454.0,0.00027397,2]
[341613521,1731033049339,-454.0,0.00027397,2]
[341613522,1731033049349,-454.0,0.00027397,2]
[341613523,1731033049358,-454.0,0.00027397,2]
[341613524,1731033049367,-454.0,0.00027397,2]
[341613525,1731033049376,-454.0,0.00027397,2]
[341613526,1731033049386,-454.0,0.00027397,2]
[341613527,1731033049396,-454.0,0.00027397,2]
[341613528,1731033049405,-454.0,0.00027397,2]
[341613529,1731033049415,-454.0,0.00027397,2]
[341613530,1731033049425,-454.0,0.00027397,2]
[341613531,1731033049434,-390.0,0.00027397,2]
[341613532,1731033049444,-390.0,0.00027397,2]
[341613533,1731033049453,-390.0,0.00027397,2]
[341613534,1731033049462,-390.0,0.00027397,2]
[341613535,1731033049471,-390.0,0.00027397,2]
[341613536,1731033049480,-390.0,0.00027397,2]
[341613537,1731033049490,-390.0,0.00027397,2]
[341613538,1731033049499,-454.0,0.00027397,2]
[341613539,1731033049511,-454.0,0.00027397,2]
[341613540,1731033049521,-454.0,0.00027397,2]
[341613541,1731033049530,-454.0,0.00027397,2]
[341613542,1731033049539,-454.0,0.00027397,2]
[341613543,1731033049548,-454.0,0.00027397,2]
[341613544,1731033049557,-454.0,0.00027397,2]
[341613545,1731033049566,-454.0,0.00027397,2]
[341613546,1731033049576,-454.0,0.00027397,2]
[341613547,1731033049584,-454.0,0.00027397,2]
[341613548,1731033049594,-454.0,0.00027397,2]
[341613549,1731033049603,-454.0,0.00027397,2]
[341613550,1731033049613,-454.0,0.00027397,2]
[341613551,1731033049622,-454.0,0.00027397,2]
[341613552,1731033049631,-390.0,0.00027397,2]
[341613553,1731033049641,-390.0,0.00027397,2]
[341613554,1731033049650,-390.0,0.00027397,2]
[341613555,1731033049660,-390.0,0.00027397,2]
[341613556,1731033049669,-390.0,0.00027397,2]
[341613557,1731033049678,-390.0,0.00027397,2]
[341613558,1731033049688,-390.0,0.00027397,2]
[341613559,1731033049698,-454.0,0.00027397,2]
[341613560,1731033049708,-454.0,0.00027397,2]
[341613561,1731033049718,-454.0,0.00027397,2]
[341613562,1731033049727,-454.0,0.00027397,2]
[341613563,1731033049737,-454.0,0.00027397,2]
[341613564,1731033049747,-454.0,0.00027397,2]
[341613565,1731033049757,-454.0,0.00027397,2]
[341613566,1731033049767,-454.0,0.00027397,2]
[341613567,1731033049776,-454.0,0.00027397,2]
[341613568,1731033049786,-454.0,0.00027397,2]
[341613569,1731033049796,-454.0,0.00027397,2]
[341613570,1731033049805,-454.0,0.00027397,2]
[341613571,1731033049814,-454.0,0.00027397,2]
[341613572,1731033049823,-151.0,0.00027397,7]
[341613573,1731033049833,-151.0,0.00027397,7]
[341613574,1731033049842,-151.0,0.00027397,7]
[341613575,1731033049851,-151.0,0.00027397,7]
[341613576,1731033049860,-151.0,0.00027397,7]
[341613577,1731033049869,-151.0,0.00027397,7]
[341613578,1731033049878,-151.0,0.00027397,7]
[341613579,1731033049887,-151.0,0.00027397,7]
[341613580,1731033049896,-151.0,0.00027397,7]
[341613581,1731033049906,-151.0,0.00027397,7]
[341613582,1731033049915,-151.0,0.00027397,7]
[341613583,1731033049924,-199.953244,0.00027397,7]
[341613584,1731033049934,-454.0,0.00027397,2]
[341613585,1731033049943,-454.0,0.00027397,2]
[341613586,1731033049952,-454.0,0.00027397,2]
[341613587,1731033049962,-454.0,0.00027397,2]
[341613588,1731033049971,-454.0,0.00027397,2]
[341613589,1731033049980,-454.0,0.00027397,2]
[341613590,1731033049989,-454.0,0.00027397,2]
[341613591,1731033049998,-454.0,0.00027397,2]
[341613592,1731033050014,-454.0,0.00027397,2]
[341613593,1731033050023,-454.0,0.00027397,2]
[341613594,1731033050033,-454.0,0.00027397,2]
[341613595,1731033050042,-152.129033,0.00027397,7]
[341613596,1731033050054,-1000.0,0.00027397,3]
[341613597,1731033050063,-1000.0,0.00027397,3]
[341613598,1731033050073,-1033.0,0.00027397,3]
[341613599,1731033050083,-1000.0,0.00027397,3]
[341613600,1731033050092,-1000.0,0.00027397,3]
[341613601,1731033050101,-1000.0,0.00027397,3]